[Event "Early-Titled-Tuesday-Blitz-September-26-2023"]
[Site "Chess.com"]
[Date "2023.09.26"]
[Round "7"]
[White "Flawless_Fighter"]
[Black "Shield12"]
[Result "0-1"]
[WhiteElo "2846"]
[BlackElo "2980"]
[TimeControl "180+1"]
[EndTime "9:21:28 PDT"]
[Termination "Shield12 won by checkmate"]

1. e4 {[%clk 0:03:00.9]} 1... c5 {[%clk 0:02:59.1]} 2. Nf3 {[%clk 0:03:00.7]}
2... e6 {[%clk 0:02:59.8]} 3. c3 {[%clk 0:03:00.5]} 3... Nf6 {[%clk 0:02:59.6]}
4. e5 {[%clk 0:03:00.7]} 4... Nd5 {[%clk 0:03:00.2]} 5. d4 {[%clk 0:03:01.3]}
5... cxd4 {[%clk 0:03:01.1]} 6. cxd4 {[%clk 0:03:02]} 6... d6 {[%clk 0:03:00.5]}
7. Bc4 {[%clk 0:03:02.3]} 7... Be7 {[%clk 0:02:58.4]} 8. O-O {[%clk 0:03:02.7]}
8... O-O {[%clk 0:02:58]} 9. Qe2 {[%clk 0:03:03.3]} 9... b6 {[%clk 0:02:57.4]}
10. Bxd5 {[%clk 0:02:59.3]} 10... exd5 {[%clk 0:02:57.1]} 11. Nc3 {[%clk
0:03:00]} 11... Ba6 {[%clk 0:02:56.6]} 12. Nb5 {[%clk 0:02:54.5]} 12... Qd7
{[%clk 0:02:49.9]} 13. a4 {[%clk 0:02:53.8]} 13... Nc6 {[%clk 0:02:48.8]} 14.
Rd1 {[%clk 0:02:47.9]} 14... Rac8 {[%clk 0:02:41.1]} 15. Bf4 {[%clk 0:02:42.8]}
15... Rfe8 {[%clk 0:02:39.6]} 16. Rac1 {[%clk 0:02:34.2]} 16... h6 {[%clk
0:02:30.6]} 17. h3 {[%clk 0:02:31.1]} 17... dxe5 {[%clk 0:02:25.1]} 18. dxe5
{[%clk 0:02:14]} 18... Bc5 {[%clk 0:02:23.2]} 19. Qd2 {[%clk 0:02:11.5]} 19...
Bxb5 {[%clk 0:02:07.5]} 20. axb5 {[%clk 0:02:10.8]} 20... Nb4 {[%clk 0:02:08.1]}
21. Qe2 {[%clk 0:01:35.3]} 21... f6 {[%clk 0:02:05.5]} 22. Qd2 {[%clk
0:01:18.5]} 22... Qxb5 {[%clk 0:01:52.2]} 23. Bxh6 {[%clk 0:00:52.5]} 23... Qd7
{[%clk 0:01:15.4]} 24. Bf4 {[%clk 0:00:47.2]} 24... fxe5 {[%clk 0:01:12.1]} 25.
Bxe5 {[%clk 0:00:43.7]} 25... Qf5 {[%clk 0:01:07.9]} 26. Bc3 {[%clk 0:00:38.4]}
26... Na2 {[%clk 0:01:00]} 27. Ra1 {[%clk 0:00:38.6]} 27... Nxc3 {[%clk
0:00:58.3]} 28. bxc3 {[%clk 0:00:39.5]} 28... a5 {[%clk 0:00:56.6]} 29. Qxd5+
{[%clk 0:00:35.7]} 29... Qxd5 {[%clk 0:00:57.5]} 30. Rxd5 {[%clk 0:00:36.1]}
30... Re2 {[%clk 0:00:56.4]} 31. Nd4 {[%clk 0:00:36.2]} 31... Rd2 {[%clk
0:00:56.3]} 32. Rb1 {[%clk 0:00:17.6]} 32... Rf8 {[%clk 0:00:52.8]} 33. Rf1
{[%clk 0:00:09.3]} 33... a4 {[%clk 0:00:51.3]} 34. Rd7 {[%clk 0:00:07.6]} 34...
a3 {[%clk 0:00:50.4]} 35. Rb7 {[%clk 0:00:07]} 35... Rb2 {[%clk 0:00:35.1]} 36.
Ne6 {[%clk 0:00:05.5]} 36... Rfxf2 {[%clk 0:00:29.3]} 37. Rxf2 {[%clk
0:00:05.3]} 37... Bxf2+ {[%clk 0:00:27.9]} 38. Kh2 {[%clk 0:00:06]} 38... Re2
{[%clk 0:00:16.6]} 39. Rxg7+ {[%clk 0:00:04.6]} 39... Kh8 {[%clk 0:00:16.2]} 40.
Re7 {[%clk 0:00:05.4]} 40... a2 {[%clk 0:00:13.5]} 41. Re8+ {[%clk 0:00:05.5]}
41... Kh7 {[%clk 0:00:13.8]} 42. Ng5+ {[%clk 0:00:04.7]} 42... Kg6 {[%clk
0:00:14.1]} 43. Rxe2 {[%clk 0:00:05.6]} 43... a1=Q {[%clk 0:00:13.9]} 44. Rxf2
{[%clk 0:00:03.9]} 44... Kxg5 {[%clk 0:00:12.4]} 45. Rf3 {[%clk 0:00:04.4]}
45... Qe1 {[%clk 0:00:10.9]} 46. Rg3+ {[%clk 0:00:03]} 46... Kf4 {[%clk
0:00:10.5]} 47. Rf3+ {[%clk 0:00:03.9]} 47... Ke4 {[%clk 0:00:11]} 48. Rg3
{[%clk 0:00:03.4]} 48... Kd5 {[%clk 0:00:10.9]} 49. Rf3 {[%clk 0:00:04.1]} 49...
Kc4 {[%clk 0:00:11.4]} 50. Rg3 {[%clk 0:00:04]} 50... Qe5 {[%clk 0:00:11.3]} 51.
h4 {[%clk 0:00:04.2]} 51... Qf4 {[%clk 0:00:10.3]} 52. Kh3 {[%clk 0:00:04.7]}
52... Kd5 {[%clk 0:00:09.4]} 53. Rg5+ {[%clk 0:00:04.3]} 53... Ke6 {[%clk
0:00:07.8]} 54. Rg3 {[%clk 0:00:03.8]} 54... Qf5+ {[%clk 0:00:06.1]} 55. Kh2
{[%clk 0:00:03.6]} 55... Qe5 {[%clk 0:00:06.6]} 56. Kh3 {[%clk 0:00:03.7]} 56...
Kf6 {[%clk 0:00:07.1]} 57. Rf3+ {[%clk 0:00:03.7]} 57... Kg6 {[%clk 0:00:07]}
58. Rg3+ {[%clk 0:00:02.9]} 58... Kf6 {[%clk 0:00:06.7]} 59. Rf3+ {[%clk
0:00:03.1]} 59... Ke6 {[%clk 0:00:07.3]} 60. Rg3 {[%clk 0:00:03.1]} 60... Qf5+
{[%clk 0:00:07.1]} 61. Kh2 {[%clk 0:00:03.3]} 61... Qf4 {[%clk 0:00:07.3]} 62.
Kh3 {[%clk 0:00:03.8]} 62... Kd5 {[%clk 0:00:06.1]} 63. Rg5+ {[%clk 0:00:04.2]}
63... Kc6 {[%clk 0:00:06.4]} 64. Rg6+ {[%clk 0:00:04.5]} 64... Kb5 {[%clk
0:00:05.7]} 65. Rg5+ {[%clk 0:00:04.7]} 65... Ka6 {[%clk 0:00:06.1]} 66. Rg3
{[%clk 0:00:05.2]} 66... Qf5+ {[%clk 0:00:06]} 67. Kh2 {[%clk 0:00:05.5]} 67...
b5 {[%clk 0:00:06.2]} 68. Rf3 {[%clk 0:00:04.7]} 68... Qg4 {[%clk 0:00:06]} 69.
Rh3 {[%clk 0:00:04]} 69... Qh5 {[%clk 0:00:04.4]} 70. Kg3 {[%clk 0:00:03]} 70...
Qe5+ {[%clk 0:00:03.6]} 71. Kf2 {[%clk 0:00:03.1]} 71... Qf5+ {[%clk 0:00:03.2]}
72. Kg1 {[%clk 0:00:03.4]} 72... Qh5 {[%clk 0:00:02.8]} 73. Kh2 {[%clk
0:00:04.1]} 73... Ka5 {[%clk 0:00:03.3]} 74. Kg3 {[%clk 0:00:04.3]} 74... Ka4
{[%clk 0:00:03.5]} 75. Kh2 {[%clk 0:00:04.4]} 75... Kb3 {[%clk 0:00:03.6]} 76.
Kh1 {[%clk 0:00:04.9]} 76... Kc2 {[%clk 0:00:03.9]} 77. Kh2 {[%clk 0:00:05.2]}
77... Kd2 {[%clk 0:00:04.5]} 78. Kg3 {[%clk 0:00:04]} 78... Ke3 {[%clk 0:00:04]}
79. Rh1 {[%clk 0:00:03]} 79... Qg6+ {[%clk 0:00:01.5]} 80. Kh3 {[%clk
0:00:03.3]} 80... Kf2 {[%clk 0:00:02.3]} 81. g4 {[%clk 0:00:01.9]} 81... Qd3+
{[%clk 0:00:02.4]} 82. Kh2 {[%clk 0:00:02.2]} 82... Qg3# {[%clk 0:00:03.3]} 0-1

[Event "Early-Titled-Tuesday-Blitz-September-26-2023"]
[Site "Chess.com"]
[Date "2023.09.26"]
[Round "7"]
[White "MasterKroket"]
[Black "KononenkoD"]
[Result "1/2-1/2"]
[WhiteElo "2438"]
[BlackElo "2593"]
[TimeControl "180+1"]
[EndTime "9:21:28 PDT"]
[Termination "Game drawn by repetition"]

1. e4 {[%clk 0:03:00.9]} 1... d5 {[%clk 0:02:58.7]} 2. exd5 {[%clk 0:03:00.4]}
2... Qxd5 {[%clk 0:02:59.6]} 3. Nc3 {[%clk 0:03:00.2]} 3... Qa5 {[%clk
0:02:59.5]} 4. d4 {[%clk 0:02:59.3]} 4... Nf6 {[%clk 0:02:59.6]} 5. Nf3 {[%clk
0:02:59.1]} 5... Bg4 {[%clk 0:02:58.8]} 6. h3 {[%clk 0:02:59.3]} 6... Bh5 {[%clk
0:02:58.8]} 7. g4 {[%clk 0:02:59.7]} 7... Bg6 {[%clk 0:02:59]} 8. Ne5 {[%clk
0:02:48.9]} 8... e6 {[%clk 0:02:39.1]} 9. Bg2 {[%clk 0:02:47.4]} 9... c6 {[%clk
0:02:34.7]} 10. Qe2 {[%clk 0:02:37.2]} 10... Nbd7 {[%clk 0:02:30.2]} 11. Nxg6
{[%clk 0:02:36.8]} 11... hxg6 {[%clk 0:02:28.6]} 12. Bd2 {[%clk 0:02:36.8]}
12... O-O-O {[%clk 0:02:14.5]} 13. O-O-O {[%clk 0:02:31.8]} 13... Bb4 {[%clk
0:02:12.3]} 14. a3 {[%clk 0:02:28.7]} 14... Bxc3 {[%clk 0:02:09.4]} 15. Bxc3
{[%clk 0:02:29]} 15... Qc7 {[%clk 0:02:04.5]} 16. Bd2 {[%clk 0:02:23.9]} 16...
Nb6 {[%clk 0:02:03.2]} 17. c3 {[%clk 0:02:16.7]} 17... Nfd5 {[%clk 0:01:51.8]}
18. Qe4 {[%clk 0:02:04.3]} 18... Nc4 {[%clk 0:01:44.8]} 19. Qc2 {[%clk
0:01:28.1]} 19... b5 {[%clk 0:01:38]} 20. Bxd5 {[%clk 0:01:27.6]} 20... cxd5
{[%clk 0:01:33.4]} 21. Kb1 {[%clk 0:01:21.2]} 21... Kb7 {[%clk 0:01:30.2]} 22.
Ka2 {[%clk 0:01:21.8]} 22... Ka8 {[%clk 0:01:19.7]} 23. b3 {[%clk 0:01:20.4]}
23... Nxd2 {[%clk 0:01:11.5]} 24. Qxd2 {[%clk 0:01:21.3]} 24... Rc8 {[%clk
0:01:10.1]} 25. Kb2 {[%clk 0:01:20.8]} 25... Qd6 {[%clk 0:01:06.5]} 26. Ra1
{[%clk 0:01:16]} 26... Rb8 {[%clk 0:01:01.4]} 27. Qe3 {[%clk 0:01:11]} 27... Rb7
{[%clk 0:00:58.8]} 28. Rhc1 {[%clk 0:01:10.8]} 28... Qh2 {[%clk 0:00:51.7]} 29.
Rh1 {[%clk 0:01:08]} 29... Qc7 {[%clk 0:00:49.3]} 30. Rhc1 {[%clk 0:01:04.7]}
30... Rc8 {[%clk 0:00:46.7]} 31. f4 {[%clk 0:01:01.2]} 31... Qa5 {[%clk
0:00:42]} 32. a4 {[%clk 0:00:55.3]} 32... Rcb8 {[%clk 0:00:34.2]} 33. b4 {[%clk
0:00:53.6]} 33... bxa4 {[%clk 0:00:33.7]} 34. Kc2 {[%clk 0:00:46.3]} 34... Qb5
{[%clk 0:00:20.2]} 35. Qd3 {[%clk 0:00:44.9]} 35... a6 {[%clk 0:00:20.5]} 36.
Kd2 {[%clk 0:00:44.3]} 36... Rc8 {[%clk 0:00:19.8]} 37. Ra3 {[%clk 0:00:44.4]}
37... Kb8 {[%clk 0:00:17.8]} 38. Rca1 {[%clk 0:00:44.4]} 38... Rbc7 {[%clk
0:00:16.5]} 39. Rxa4 {[%clk 0:00:43.2]} 39... Qxd3+ {[%clk 0:00:16.3]} 40. Kxd3
{[%clk 0:00:42.3]} 40... Rxc3+ {[%clk 0:00:16.8]} 41. Kd2 {[%clk 0:00:42.9]}
41... Rxh3 {[%clk 0:00:12.2]} 42. Rxa6 {[%clk 0:00:42.3]} 42... Rh2+ {[%clk
0:00:12.4]} 43. Kd3 {[%clk 0:00:41.7]} 43... Rh3+ {[%clk 0:00:12.7]} 44. Kd2
{[%clk 0:00:41.9]} 44... Rh2+ {[%clk 0:00:11.4]} 45. Kd3 {[%clk 0:00:41.7]}
45... Rch8 {[%clk 0:00:11.6]} 46. Ra8+ {[%clk 0:00:41.6]} 46... Kb7 {[%clk
0:00:12]} 47. R1a7+ {[%clk 0:00:42.2]} 47... Kb6 {[%clk 0:00:12.4]} 48. Rxh8
{[%clk 0:00:42.5]} 48... Rxh8 {[%clk 0:00:11.6]} 49. Rxf7 {[%clk 0:00:43.1]}
49... Rh3+ {[%clk 0:00:11.8]} 50. Kd2 {[%clk 0:00:43.2]} 50... Kb5 {[%clk
0:00:12.3]} 51. Rxg7 {[%clk 0:00:43]} 51... Kxb4 {[%clk 0:00:12.7]} 52. Rxg6
{[%clk 0:00:43.5]} 52... Kc4 {[%clk 0:00:13.2]} 53. Rxe6 {[%clk 0:00:43.6]}
53... Kxd4 {[%clk 0:00:13.7]} 54. f5 {[%clk 0:00:44.1]} 54... Rh2+ {[%clk
0:00:12.7]} 55. Ke1 {[%clk 0:00:44.3]} 55... Rg2 {[%clk 0:00:12]} 56. f6 {[%clk
0:00:43.2]} 56... Rxg4 {[%clk 0:00:10.6]} 57. Ra6 {[%clk 0:00:42.6]} 57... Ke5
{[%clk 0:00:09.5]} 58. Ra3 {[%clk 0:00:41.7]} 58... Rf4 {[%clk 0:00:09.1]} 59.
Kd2 {[%clk 0:00:41.9]} 59... Rxf6 {[%clk 0:00:08.8]} 60. Rb3 {[%clk 0:00:42.2]}
60... Rh6 {[%clk 0:00:08.8]} 61. Rg3 {[%clk 0:00:41.9]} 61... Kd4 {[%clk
0:00:08]} 62. Rf3 {[%clk 0:00:41]} 62... Kc4 {[%clk 0:00:07.8]} 63. Rg3 {[%clk
0:00:40.6]} 63... Rh2+ {[%clk 0:00:08]} 64. Kd1 {[%clk 0:00:40.9]} 64... Rb2
{[%clk 0:00:07.4]} 65. Rh3 {[%clk 0:00:40.8]} 65... Rb7 {[%clk 0:00:06.5]} 66.
Rg3 {[%clk 0:00:40.9]} 66... Re7 {[%clk 0:00:06.6]} 67. Rh3 {[%clk 0:00:41.1]}
67... Re4 {[%clk 0:00:07.1]} 68. Rg3 {[%clk 0:00:40.7]} 68... Rd4+ {[%clk
0:00:07.6]} 69. Kc2 {[%clk 0:00:40.4]} 69... Rf4 {[%clk 0:00:07.9]} 70. Kd2
{[%clk 0:00:40]} 70... Rf2+ {[%clk 0:00:07.4]} 71. Kd1 {[%clk 0:00:40.2]} 71...
d4 {[%clk 0:00:07.5]} 72. Rh3 {[%clk 0:00:39.7]} 72... Rf4 {[%clk 0:00:07]} 73.
Rg3 {[%clk 0:00:39.9]} 73... Rh4 {[%clk 0:00:07.2]} 74. Rf3 {[%clk 0:00:39.9]}
74... Rh1+ {[%clk 0:00:07.6]} 75. Kd2 {[%clk 0:00:40]} 75... Rh2+ {[%clk
0:00:08.5]} 76. Kd1 {[%clk 0:00:40.2]} 76... Rb2 {[%clk 0:00:09]} 77. Rg3 {[%clk
0:00:40.4]} 77... Rf2 {[%clk 0:00:09.4]} 78. Rh3 {[%clk 0:00:40.5]} 78... Kd5
{[%clk 0:00:09.9]} 79. Rg3 {[%clk 0:00:40.7]} 79... Ke4 {[%clk 0:00:09.5]} 80.
Rh3 {[%clk 0:00:40.8]} 80... Rb2 {[%clk 0:00:08.7]} 81. Rg3 {[%clk 0:00:40.7]}
81... Rb5 {[%clk 0:00:09]} 82. Rh3 {[%clk 0:00:40.9]} 82... Rf5 {[%clk
0:00:08.4]} 83. Rg3 {[%clk 0:00:40.2]} 83... Kd5 {[%clk 0:00:08.7]} 84. Rh3
{[%clk 0:00:40.3]} 84... Kc4 {[%clk 0:00:09.6]} 85. Rg3 {[%clk 0:00:40.5]} 85...
Rf1+ {[%clk 0:00:08.6]} 86. Kd2 {[%clk 0:00:40.4]} 86... Rf2+ {[%clk 0:00:08.9]}
87. Kd1 {[%clk 0:00:40.8]} 87... Rf4 {[%clk 0:00:05.9]} 88. Rh3 {[%clk 0:00:41]}
88... Re4 {[%clk 0:00:06.2]} 89. Rg3 {[%clk 0:00:41.1]} 89... Rh4 {[%clk
0:00:06.3]} 90. Rf3 {[%clk 0:00:41]} 90... Rh7 {[%clk 0:00:05.6]} 91. Rg3 {[%clk
0:00:41.4]} 91... Ra7 {[%clk 0:00:06.5]} 92. Rh3 {[%clk 0:00:41.5]} 92... Kd5
{[%clk 0:00:06.7]} 93. Rg3 {[%clk 0:00:41.4]} 93... Ke4 {[%clk 0:00:07.3]} 94.
Rh3 {[%clk 0:00:41.8]} 94... Rg7 {[%clk 0:00:07.7]} 95. Kd2 {[%clk 0:00:41.9]}
95... Rg2+ {[%clk 0:00:07.6]} 96. Kd1 {[%clk 0:00:42.3]} 96... Rg5 {[%clk
0:00:08]} 97. Kd2 {[%clk 0:00:42.3]} 97... Rg1 {[%clk 0:00:08.2]} 98. Rh4+
{[%clk 0:00:40.9]} 98... Kd5 {[%clk 0:00:08.7]} 99. Rh3 {[%clk 0:00:41.2]} 99...
Kc4 {[%clk 0:00:08]} 100. Rf3 {[%clk 0:00:40.4]} 100... Rg4 {[%clk 0:00:08.1]}
101. Rh3 {[%clk 0:00:40.4]} 101... d3 {[%clk 0:00:07.6]} 102. Rh8 {[%clk
0:00:39.3]} 102... Rg2+ {[%clk 0:00:08.2]} 103. Kd1 {[%clk 0:00:39.5]} 103...
Kd4 {[%clk 0:00:08.1]} 104. Rd8+ {[%clk 0:00:39.5]} 104... Kc3 {[%clk 0:00:09]}
105. Rc8+ {[%clk 0:00:39.6]} 105... Kd4 {[%clk 0:00:09.8]} 106. Rd8+ {[%clk
0:00:40]} 106... Ke3 {[%clk 0:00:10.7]} 107. Re8+ {[%clk 0:00:40.6]} 107... Kd4
{[%clk 0:00:11.6]} 108. Rd8+ {[%clk 0:00:41.1]} 1/2-1/2

[Event "Early-Titled-Tuesday-Blitz-September-26-2023"]
[Site "Chess.com"]
[Date "2023.09.26"]
[Round "8"]
[White "salomez"]
[Black "Juicy_Fork"]
[Result "0-1"]
[WhiteElo "2301"]
[BlackElo "2469"]
[TimeControl "180+1"]
[EndTime "9:24:40 PDT"]
[Termination "Juicy_Fork won by resignation"]

1. d4 {[%clk 0:02:56.3]} 1... Nf6 {[%clk 0:03:00.2]} 2. Nc3 {[%clk 0:02:55.2]}
2... d5 {[%clk 0:02:58.9]} 3. Bf4 {[%clk 0:02:53.3]} 3... g6 {[%clk 0:02:55.4]}
4. e3 {[%clk 0:02:50.9]} 4... Bg7 {[%clk 0:02:53.6]} 5. h4 {[%clk 0:02:49.3]}
5... h5 {[%clk 0:02:46.5]} 6. Nf3 {[%clk 0:02:47.9]} 6... O-O {[%clk 0:02:45.7]}
7. Ne5 {[%clk 0:02:47.2]} 7... c5 {[%clk 0:02:45.6]} 8. Bd3 {[%clk 0:02:44.3]}
8... Qb6 {[%clk 0:02:45.2]} 9. dxc5 {[%clk 0:02:37.1]} 9... Qxb2 {[%clk
0:02:36.2]} 10. Na4 {[%clk 0:02:36.7]} 10... Qa3 {[%clk 0:02:35.3]} 11. c4
{[%clk 0:02:13.5]} 11... Nfd7 {[%clk 0:02:23.6]} 12. Nxd7 {[%clk 0:02:04.5]}
12... Bxd7 {[%clk 0:02:20.8]} 0-1

[Event "Early-Titled-Tuesday-Blitz-September-26-2023"]
[Site "Chess.com"]
[Date "2023.09.26"]
[Round "8"]
[White "Shuvalov"]
[Black "Rutricks"]
[Result "0-1"]
[WhiteElo "2473"]
[BlackElo "2686"]
[TimeControl "180+1"]
[EndTime "9:24:45 PDT"]
[Termination "Rutricks won by resignation"]

1. d4 {[%clk 0:03:00.9]} 1... g6 {[%clk 0:02:46.8]} 2. c4 {[%clk 0:03:00.7]}
2... Bg7 {[%clk 0:02:47.7]} 3. e4 {[%clk 0:03:00.6]} 3... d6 {[%clk 0:02:46.3]}
4. Nc3 {[%clk 0:03:00.5]} 4... Nd7 {[%clk 0:02:47.2]} 5. Nf3 {[%clk 0:03:00]}
5... e5 {[%clk 0:02:47.1]} 6. Be2 {[%clk 0:02:56.2]} 6... Ngf6 {[%clk
0:02:46.6]} 7. O-O {[%clk 0:02:55.7]} 7... O-O {[%clk 0:02:47]} 8. Be3 {[%clk
0:02:54.9]} 8... Re8 {[%clk 0:02:46.8]} 9. d5 {[%clk 0:02:54.8]} 9... a5 {[%clk
0:02:44.5]} 10. Ne1 {[%clk 0:02:52.1]} 10... Nc5 {[%clk 0:02:43]} 11. a3 {[%clk
0:02:45.6]} 11... Ncxe4 {[%clk 0:02:36.3]} 12. Nxe4 {[%clk 0:02:41.8]} 12...
Nxe4 {[%clk 0:02:35.3]} 13. Bd3 {[%clk 0:02:41.6]} 13... Nf6 {[%clk 0:02:30.6]}
14. b4 {[%clk 0:02:39.6]} 14... e4 {[%clk 0:02:20]} 15. Be2 {[%clk 0:02:38.2]}
15... axb4 {[%clk 0:02:17.5]} 16. axb4 {[%clk 0:02:37.9]} 16... Rxa1 {[%clk
0:02:17.9]} 17. Qxa1 {[%clk 0:02:38.8]} 17... Nxd5 {[%clk 0:02:18.1]} 18. Bd4
{[%clk 0:02:39.2]} 18... Bxd4 {[%clk 0:02:12.4]} 19. Qxd4 {[%clk 0:02:38.6]}
19... Nxb4 {[%clk 0:02:13]} 20. c5 {[%clk 0:02:36.3]} 20... Nc6 {[%clk
0:02:12.8]} 21. Qc3 {[%clk 0:02:34.9]} 21... d5 {[%clk 0:02:11.6]} 22. Bb5
{[%clk 0:02:27.2]} 22... d4 {[%clk 0:02:12]} 23. Qg3 {[%clk 0:02:23.1]} 23... d3
{[%clk 0:02:09.6]} 24. Ba4 {[%clk 0:02:18.6]} 24... d2 {[%clk 0:02:03.2]} 0-1

[Event "Early-Titled-Tuesday-Blitz-September-26-2023"]
[Site "Chess.com"]
[Date "2023.09.26"]
[Round "8"]
[White "C_K_G"]
[Black "amylazy"]
[Result "1-0"]
[WhiteElo "1936"]
[BlackElo "2435"]
[TimeControl "180+1"]
[EndTime "9:25:02 PDT"]
[Termination "C_K_G won by checkmate"]

1. e4 {[%clk 0:03:00.9]} 1... c5 {[%clk 0:02:59.7]} 2. Nf3 {[%clk 0:03:01]} 2...
e6 {[%clk 0:02:54.9]} 3. d4 {[%clk 0:03:01.5]} 3... cxd4 {[%clk 0:02:55.2]} 4.
Nxd4 {[%clk 0:03:02.1]} 4... a6 {[%clk 0:02:55.3]} 5. Bd3 {[%clk 0:03:00.4]}
5... Bc5 {[%clk 0:02:54.5]} 6. Nb3 {[%clk 0:02:59.1]} 6... Be7 {[%clk
0:02:54.5]} 7. Nc3 {[%clk 0:02:58.4]} 7... d6 {[%clk 0:02:53.6]} 8. O-O {[%clk
0:02:57.9]} 8... Nf6 {[%clk 0:02:53]} 9. Be3 {[%clk 0:02:56.5]} 9... O-O {[%clk
0:02:52.9]} 10. f4 {[%clk 0:02:55.7]} 10... Nbd7 {[%clk 0:02:52.8]} 11. Qf3
{[%clk 0:02:54.4]} 11... Rb8 {[%clk 0:02:52.1]} 12. g4 {[%clk 0:02:53.8]} 12...
b5 {[%clk 0:02:51.6]} 13. g5 {[%clk 0:02:53]} 13... Ne8 {[%clk 0:02:51.9]} 14.
Qh5 {[%clk 0:02:47.3]} 14... g6 {[%clk 0:02:51.6]} 15. Qh6 {[%clk 0:02:46.7]}
15... b4 {[%clk 0:02:36.4]} 16. Ne2 {[%clk 0:02:41.4]} 16... Bb7 {[%clk
0:02:34.9]} 17. Rf3 {[%clk 0:02:40.1]} 17... Ng7 {[%clk 0:02:30.7]} 18. Rh3
{[%clk 0:02:38.7]} 18... Nh5 {[%clk 0:02:30.7]} 19. Ng3 {[%clk 0:02:38.1]} 19...
Re8 {[%clk 0:01:51.3]} 20. Nxh5 {[%clk 0:02:23.2]} 20... Bf8 {[%clk 0:01:40.9]}
21. Qxh7+ {[%clk 0:02:17.3]} 21... Kxh7 {[%clk 0:01:40.7]} 22. Nf6+ {[%clk
0:02:17.2]} 22... Kg7 {[%clk 0:01:41.6]} 23. Rh7# {[%clk 0:02:16.8]} 1-0

[Event "Early-Titled-Tuesday-Blitz-September-26-2023"]
[Site "Chess.com"]
[Date "2023.09.26"]
[Round "8"]
[White "Khromkin"]
[Black "Martial2008"]
[Result "1-0"]
[WhiteElo "2393"]
[BlackElo "2596"]
[TimeControl "180+1"]
[EndTime "9:25:36 PDT"]
[Termination "Khromkin won by checkmate"]

1. d4 {[%clk 0:03:00.9]} 1... Nf6 {[%clk 0:02:55.1]} 2. c4 {[%clk 0:03:00.7]}
2... e6 {[%clk 0:02:48.2]} 3. Nf3 {[%clk 0:03:01.1]} 3... d5 {[%clk 0:02:33.4]}
4. Nc3 {[%clk 0:03:00.2]} 4... Bb4 {[%clk 0:02:17.9]} 5. Qa4+ {[%clk 0:02:59]}
5... Nc6 {[%clk 0:02:17.7]} 6. Bd2 {[%clk 0:02:59.6]} 6... O-O {[%clk 0:02:16]}
7. e3 {[%clk 0:02:59.5]} 7... a6 {[%clk 0:02:14.8]} 8. Qc2 {[%clk 0:02:59.3]}
8... dxc4 {[%clk 0:02:14.7]} 9. Bxc4 {[%clk 0:02:58.4]} 9... Na5 {[%clk
0:02:14.9]} 10. Bd3 {[%clk 0:02:58.4]} 10... c5 {[%clk 0:02:15]} 11. a3 {[%clk
0:02:54.5]} 11... cxd4 {[%clk 0:02:15.1]} 12. axb4 {[%clk 0:02:34.2]} 12... dxc3
{[%clk 0:02:14.3]} 13. Bxc3 {[%clk 0:02:34.8]} 13... Nc6 {[%clk 0:02:14.2]} 14.
b5 {[%clk 0:02:30.2]} 14... Nb8 {[%clk 0:02:14.1]} 15. Bxf6 {[%clk 0:02:19.8]}
15... Qxf6 {[%clk 0:02:12.7]} 16. Bxh7+ {[%clk 0:02:20.4]} 16... Kh8 {[%clk
0:02:13.3]} 17. Be4 {[%clk 0:02:18.1]} 17... Nd7 {[%clk 0:02:11.4]} 18. Ra4
{[%clk 0:02:05.9]} 18... Nb6 {[%clk 0:02:11.3]} 19. Ra5 {[%clk 0:01:51.4]} 19...
g6 {[%clk 0:02:06.4]} 20. Qc5 {[%clk 0:01:40.6]} 20... Nd7 {[%clk 0:02:03]} 21.
Qd6 {[%clk 0:01:25.9]} 21... Qxb2 {[%clk 0:02:00.7]} 22. O-O {[%clk 0:01:26.5]}
22... Nf6 {[%clk 0:01:57.9]} 23. Qxf8+ {[%clk 0:01:25.5]} 23... Kh7 {[%clk
0:01:56.5]} 24. Qxf7+ {[%clk 0:01:24.9]} 24... Kh6 {[%clk 0:01:55.9]} 25. Qxg6#
{[%clk 0:01:24.6]} 1-0

[Event "Early-Titled-Tuesday-Blitz-September-26-2023"]
[Site "Chess.com"]
[Date "2023.09.26"]
[Round "8"]
[White "gueraumasague"]
[Black "pinguino120"]
[Result "1-0"]
[WhiteElo "2466"]
[BlackElo "2231"]
[TimeControl "180+1"]
[EndTime "9:25:39 PDT"]
[Termination "gueraumasague won by checkmate"]

1. e4 {[%clk 0:03:00.9]} 1... c5 {[%clk 0:02:59.4]} 2. Nc3 {[%clk 0:03:01.3]}
2... a6 {[%clk 0:02:59.2]} 3. g3 {[%clk 0:03:00.5]} 3... b5 {[%clk 0:02:59.1]}
4. Bg2 {[%clk 0:03:01.2]} 4... Bb7 {[%clk 0:02:59.4]} 5. d3 {[%clk 0:03:01.9]}
5... e6 {[%clk 0:02:59.8]} 6. Nh3 {[%clk 0:03:02.4]} 6... b4 {[%clk 0:02:53.3]}
7. Ne2 {[%clk 0:03:01.6]} 7... d5 {[%clk 0:02:53.2]} 8. e5 {[%clk 0:02:55.5]}
8... Ne7 {[%clk 0:02:48.9]} 9. O-O {[%clk 0:02:47.5]} 9... Nbc6 {[%clk
0:02:47.9]} 10. f4 {[%clk 0:02:46.1]} 10... Nf5 {[%clk 0:02:47.2]} 11. g4 {[%clk
0:02:40.4]} 11... Nh4 {[%clk 0:02:46]} 12. Ng3 {[%clk 0:02:40.8]} 12... Nxg2
{[%clk 0:02:45.5]} 13. Kxg2 {[%clk 0:02:41.7]} 13... Be7 {[%clk 0:02:26.8]} 14.
Ng5 {[%clk 0:02:33.8]} 14... Bxg5 {[%clk 0:02:14.7]} 15. fxg5 {[%clk 0:02:34.7]}
15... Nxe5 {[%clk 0:02:14.2]} 16. d4 {[%clk 0:02:29.1]} 16... Ng6 {[%clk
0:01:48.3]} 17. c3 {[%clk 0:01:55.5]} 17... cxd4 {[%clk 0:01:38.8]} 18. Qxd4
{[%clk 0:01:40.1]} 18... e5 {[%clk 0:01:30.5]} 19. Qxb4 {[%clk 0:01:39.3]} 19...
d4+ {[%clk 0:01:30.3]} 20. Qxb7 {[%clk 0:01:38.8]} 20... Rb8 {[%clk 0:01:27.8]}
21. Qxf7# {[%clk 0:01:38.8]} 1-0

[Event "Early-Titled-Tuesday-Blitz-September-26-2023"]
[Site "Chess.com"]
[Date "2023.09.26"]
[Round "8"]
[White "noblerone"]
[Black "emeli_chess"]
[Result "1-0"]
[WhiteElo "2490"]
[BlackElo "2351"]
[TimeControl "180+1"]
[EndTime "9:26:04 PDT"]
[Termination "noblerone won by resignation"]

1. d4 {[%clk 0:03:00.9]} 1... Nf6 {[%clk 0:02:59.3]} 2. Nf3 {[%clk 0:03:01.4]}
2... d5 {[%clk 0:02:58.8]} 3. Bg5 {[%clk 0:03:01.4]} 3... Nbd7 {[%clk
0:02:57.3]} 4. Nbd2 {[%clk 0:02:59.9]} 4... e6 {[%clk 0:02:57.5]} 5. e3 {[%clk
0:03:00.2]} 5... Be7 {[%clk 0:02:57.7]} 6. Bd3 {[%clk 0:03:00.4]} 6... O-O
{[%clk 0:02:57.9]} 7. O-O {[%clk 0:03:00.7]} 7... Re8 {[%clk 0:02:58.2]} 8. c3
{[%clk 0:02:59.5]} 8... Nf8 {[%clk 0:02:57.9]} 9. Ne5 {[%clk 0:02:59.3]} 9...
N6d7 {[%clk 0:02:57.6]} 10. Bxe7 {[%clk 0:02:35.2]} 10... Qxe7 {[%clk
0:02:57.1]} 11. f4 {[%clk 0:02:36.1]} 11... f6 {[%clk 0:02:56.1]} 12. Nxd7
{[%clk 0:02:26.5]} 12... Bxd7 {[%clk 0:02:39.2]} 13. Qh5 {[%clk 0:02:25.4]}
13... e5 {[%clk 0:02:17.8]} 14. fxe5 {[%clk 0:01:43.2]} 14... fxe5 {[%clk
0:02:17.4]} 15. Rxf8+ {[%clk 0:01:35.6]} 15... Kxf8 {[%clk 0:01:53.7]} 16. Rf1+
{[%clk 0:01:32.1]} 16... Qf6 {[%clk 0:01:53.2]} 17. Rxf6+ {[%clk 0:01:24.7]}
17... gxf6 {[%clk 0:01:53.4]} 18. Qxh7 {[%clk 0:01:24]} 18... Be6 {[%clk
0:01:51.7]} 19. Bg6 {[%clk 0:01:17.4]} 19... Re7 {[%clk 0:01:38]} 20. Qh8+
{[%clk 0:01:16.2]} 20... Bg8 {[%clk 0:01:38.2]} 21. Qxf6+ {[%clk 0:01:16.2]}
21... Bf7 {[%clk 0:01:38.4]} 22. Bxf7 {[%clk 0:01:13.2]} 22... Rxf7 {[%clk
0:01:37.5]} 23. Qh8+ {[%clk 0:01:12.8]} 1-0